bitfinex-derivatives/quotes_ETHF0:USTF0_20250620
["timestamp","ask_amount","ask_price","bid_price","bid_amount"]
[1750410892381,10.119,2555.7,2555.6,0.78244]
[1750410893378,33.4918,2555.7,2555.6,0.78244]
[1750410893977,34.27421,2555.7,2555.6,0.78244]
[1750410894175,33.4918,2555.7,2555.6,0.78244]
[1750410895181,34.27421,2555.7,2555.6,0.78244]
[1750410895382,33.4918,2555.7,2555.6,0.78244]
[1750410895578,9.4628,2555.7,2555.6,0.78244]
[1750410895778,33.4888,2555.7,2555.6,0.78244]
[1750410896284,6.255,2555.7,2555.6,0.78244]
[1750410897281,10.24414,2556.0,2555.9,0.78235]
[1750410897476,34.5174242,2556.0,2555.9,0.78235]
[1750410897680,4.2384242,2556.0,2555.9,0.78235]
[1750410897883,34.5174242,2556.0,2555.9,0.78235]
[1750410898082,5.0207442,2556.0,2555.9,0.78235]
[1750410898282,29.0447442,2556.0,2555.9,0.78235]
[1750410898785,4.2384242,2556.0,2555.9,0.78235]
[1750410899079,3.2078,2556.0,2555.9,0.78235]
[1750410899678,25.46151,2556.1,2555.7,1.95603]
[1750410899679,24.6792,2556.1,2556.0,0.78232]
[1750410899880,25.46149,2556.1,2556.0,0.78232]
[1750410900076,24.6792,2556.1,2556.0,0.78232]
[1750410900278,25.46149,2556.1,2556.0,0.78232]
[1750410900585,24.6792,2556.1,2556.0,0.78232]
[1750410900779,0.6562,2556.1,2556.0,0.78232]
[1750410901085,24.6782,2556.1,2556.0,0.78232]
[1750410901684,0.78235,2556.0,2555.9,0.78233]
[1750410902385,1.43852,2556.1,2556.0,0.78232]
[1750410902580,25.45852,2556.1,2556.0,0.78232]
[1750410905388,24.6762,2556.1,2556.0,0.78232]
[1750410905987,25.45849,2556.1,2556.0,0.78232]
[1750410906488,24.6762,2556.1,2556.0,0.78232]
[1750410906684,0.6562,2556.1,2556.0,0.78232]
[1750410908991,0.72553781,2556.1,2556.0,0.78232]
[1750410909383,0.06933781,2556.1,2556.0,0.78232]
[1750410909889,0.78226,2556.2,2556.1,0.78229]
[1750410911293,0.78235,2556.0,2555.9,0.78232]
[1750410911990,2.09265,2556.0,2555.9,0.78232]
[1750410912387,1.3103,2556.0,2555.9,0.78232]
[1750410912887,0.06933781,2556.1,2556.0,0.78232]
[1750410913189,24.79427,2556.2,2556.1,0.78229]
[1750410913687,24.012,2556.2,2556.1,0.78229]
[1750410914086,24.79426,2556.2,2556.1,0.78229]
[1750410914590,24.012,2556.2,2555.7,5.16382]
[1750410914789,0.78235,2556.0,2555.9,0.78233]
[1750410917487,1.44193781,2556.1,2555.7,1.95603]
[1750410917690,2.22424781,2556.1,2556.0,0.78232]
[1750410917891,32.47724781,2556.1,2556.0,0.78232]
[1750410918495,0.78235,2556.0,2555.9,0.78233]
[1750410918793,2.11895,2556.0,2555.9,0.78233]
[1750410919792,2.11895,2556.0,2555.9,0.78235]
[1750410919991,6.3366,2556.0,2555.2,3.12867984]
[1750410920191,1.9562,2555.5,2555.1,3.2078]
[1750410920401,0.78257,2555.2,2555.1,3.2078]
[1750410920690,33.49367,2555.4,2554.9,0.78265]
[1750410920691,0.78265,2555.0,2554.9,0.78265]
[1750410921291,2.07005,2555.0,2554.9,0.78266]
[1750410921695,1.2874,2555.0,2554.9,0.78266]
[1750410922093,2.07003,2555.0,2554.9,0.78266]
[1750410922296,1.2874,2555.0,2554.9,0.78266]
[1750410923296,2.07003,2555.0,2554.9,0.78266]
[1750410923803,0.78266,2554.9,2554.8,0.78266]
[1750410923988,1.3585,2554.9,2554.7,3.2078]
[1750410924296,1.3585,2554.9,2554.8,0.78269]
[1750410925499,2.14116,2554.9,2554.8,0.78269]
[1750410927002,1.3585,2554.9,2554.8,0.78269]
[1750410927499,2.14116,2554.9,2554.8,0.78269]
[1750410929197,1.3585,2554.9,2554.8,0.78269]
[1750410929599,7.02763,2555.0,2554.9,0.78266]
[1750410929797,0.78268,2554.9,2554.8,0.78268]
[1750410930097,2.04968,2554.9,2554.8,0.78268]
[1750410933708,0.78269,2554.8,2554.7,3.9905]
[1750410934205,2.04968,2554.9,2554.8,0.78269]
[1750410935906,2.04966,2554.9,2554.8,0.78269]
[1750410936113,6.245,2555.0,2554.9,0.78266]
[1750410936306,31.03363,2555.0,2554.9,0.78266]
[1750410937406,0.78269,2554.8,2554.7,3.2078]
[1750410938201,1.45059,2554.8,2554.7,3.2078]
[1750410938507,1.45059,2554.8,2554.7,3.99052]
[1750410938903,1.45059,2554.8,2554.7,0.78272]
[1750410939204,0.78279,2554.6,2554.5,0.78276]
[1750410941200,26.16264,2554.7,2554.6,0.78275]
[1750410941403,25.3799,2554.7,2554.6,0.78275]
[1750410941609,24.78772,2554.7,2554.6,0.78275]
[1750410941816,0.78278,2554.6,2554.5,0.78277]
[1750410942714,24.005,2554.7,2554.6,0.78275]
[1750410942715,24.78774,2554.7,2554.6,0.78275]
[1750410942904,26.05684,2554.7,2554.6,0.78275]
[1750410945112,0.78277,2554.6,2554.5,0.78275]
[1750410946013,26.05684,2554.7,2554.6,0.78275]
[1750410947112,0.78278,2554.6,2554.5,0.78276]
[1750410952318,0.78281,2554.5,2554.4,0.78278]
[1750410952520,0.78277,2554.6,2554.5,0.78275]
[1750410953222,0.78274,2554.7,2554.6,0.78275]
[1750410953432,24.78068,2554.9,2554.8,0.78266]
[1750410953727,25.81254321,2554.9,2554.8,0.78266]
[1750410954122,24.78068,2554.9,2554.8,0.78266]
[1750410954322,25.81243227,2554.9,2554.8,0.78266]
[1750410954521,1.81436389,2554.9,2554.8,0.78266]
[1750410954927,0.78268,2554.9,2554.8,0.78266]
[1750410955427,1.81433541,2554.9,2554.8,0.78266]
[1750410956630,0.78269,2554.8,2554.7,1.4317]
[1750410957434,0.78268,2554.9,2554.8,0.78266]
[1750410959129,0.78269,2554.8,2554.7,1.4317]
[1750410966139,1.95678,2554.8,2554.4,3.12867984]
[1750410966344,1.95678,2554.8,2554.4,0.7828]
[1750410966345,0.78281,2554.5,2554.4,0.7828]
[1750410967045,0.78281,2554.4,2554.3,3.99062]
[1750410968144,0.7828,2554.5,2554.4,0.78279]
[1750410969237,2.73278,2554.6,2554.5,0.78278]
[1750410969432,0.6406,2554.6,2554.5,0.78278]
[1750410969633,0.78271,2554.8,2554.7,0.78272]
[1750410969839,2.4917264,2554.8,2554.7,0.78272]
[1750410970041,1.7090164,2554.8,2554.7,0.78272]
[1750410970240,6.237,2554.9,2554.8,0.78269]
[1750410970444,7.27474952,2554.9,2554.8,0.78269]
[1750410970839,1.03774952,2554.9,2554.8,0.78269]
[1750410971045,1.82040952,2554.9,2554.8,0.78269]
[1750410971340,0.78281,2554.4,2554.3,6.33647984]
[1750410971539,7.6176,2554.8,2554.3,3.2078]
[1750410971745,2.41853922,2554.7,2554.3,3.99062]
[1750410971932,0.7828,2554.5,2554.3,3.99062]
[1750410972137,0.7828,2554.5,2554.4,0.78281]
[1750410972340,0.7828,2554.5,2554.3,3.99061]
[1750410972542,0.78281,2554.4,2554.3,3.2078]
[1750410972942,0.78281,2554.4,2554.3,3.99064]
[1750410973550,0.78281,2554.4,2554.3,3.2078]
[1750410974340,0.78293,2554.0,2553.9,6.33647984]
[1750410974547,0.78293,2554.0,2553.9,3.2078]
[1750410976449,0.78293,2554.0,2553.9,3.99076]
[1750410976653,0.78293,2554.0,2553.9,3.2078]
[1750410979848,7.00993,2554.0,2553.9,3.2078]
[1750410980943,0.78305,2553.6,2553.5,3.2078]
[1750410981454,0.78305,2553.6,2553.5,3.99088]
[1750410983346,1.2486,2553.8,2553.5,3.2078]
[1750410983553,0.78305,2553.6,2553.5,3.2078]
[1750410984658,0.78315,2553.3,2553.2,1.42407]
[1750410984951,0.78318,2553.2,2553.1,3.2078]
[1750410985156,1.2459,2553.5,2553.1,3.2078]
[1750410985353,0.78317,2553.3,2553.1,3.99099]
[1750410985556,0.6611,2553.4,2553.0,0.6514]
[1750410985755,0.78319,2553.2,2553.1,3.2078]
[1750410986349,2.02906,2553.3,2553.1,3.991]
[1750410986646,0.78318,2553.2,2553.1,3.991]
[1750410987064,0.78318,2553.2,2553.1,0.7832]
[1750410987354,2.02908,2553.3,2553.1,3.991]
[1750410987564,0.78318,2553.2,2553.1,3.991]
[1750410987755,0.78318,2553.2,2553.1,0.7832]
[1750410988262,0.78318,2553.2,2553.1,3.2078]
[1750410988454,0.78321,2553.1,2553.0,3.8592]
[1750410988656,1.2459,2553.3,2552.9,3.2078]
[1750410988961,0.78324,2553.0,2552.9,3.2078]
[1750410989463,0.78324,2553.0,2552.9,3.99105]
[1750410989759,0.78324,2553.0,2552.9,3.2078]
[1750410990359,1.95795,2553.2,2552.6,9.4358]
[1750410990564,1.4125,2552.9,2552.7,0.7833]
[1750410990755,0.78331,2552.8,2552.7,0.78332]
[1750410991451,0.6292,2552.9,2552.6,3.2078]
[1750410991761,0.78333,2552.7,2552.6,3.99115]
[1750410991961,0.78333,2552.8,2552.7,0.78333]
[1750410992158,0.78333,2552.7,2552.6,3.2078]
[1750410992456,0.78333,2552.7,2552.6,3.99115]
[1750410992661,0.78333,2552.7,2552.6,3.2078]
[1750410993160,0.78333,2552.7,2552.6,3.99116]
[1750410993561,0.78332,2552.8,2552.7,0.78332]
[1750410993763,1.2787,2552.8,2552.6,3.2078]
[1750410993958,1.2787,2552.8,2552.7,0.78333]
[1750410993959,2.06202,2552.8,2552.7,0.78333]
[1750410994856,0.78333,2552.7,2552.6,3.2078]
[1750410995065,2.06203,2552.7,2552.6,3.99116]
[1750410995254,1.2787,2552.7,2552.6,3.99116]
[1750410995455,1.41247,2552.9,2552.8,0.7833]
[1750410995657,6.8582,2552.9,2552.8,0.7833]
[1750410995873,7.64147,2552.9,2552.8,0.7833]
[1750410997562,6.8582,2552.9,2552.8,0.7833]
[1750410997866,9.4368,2553.2,2553.1,0.78321]
[1750410999268,10.22,2553.2,2553.1,0.78321]
[1750411000866,6.23,2553.5,2553.4,0.78312]
[1750411001164,7.01309,2553.5,2553.4,0.78312]
[1750411001360,6.23,2553.5,2553.4,0.78312]
[1750411001759,7.01309,2553.5,2553.4,0.78312]
[1750411003161,11.23,2553.5,2552.6,6.33647984]
[1750411003470,3.2078,2553.3,2552.6,3.8814]
[1750411003665,1.95803,2553.1,2552.6,3.2078]
[1750411003872,0.78332,2552.8,2552.7,0.7833]
[1750411006167,1.4165,2552.9,2552.8,0.7833]
[1750411006360,0.6332,2552.9,2552.8,0.7833]
[1750411006560,6.8632,2552.9,2552.8,0.7833]
[1750411006764,0.6332,2552.9,2552.8,0.7833]
[1750411007272,1.41647,2552.9,2552.8,0.7833]
[1750411007767,4.5018,2553.3,2552.6,5.16619]
[1750411007970,6.23,2553.0,2552.9,0.78327]
[1750411008165,0.78324,2553.0,2552.9,0.78327]
[1750411009060,7.00323,2553.1,2553.0,0.78324]
[1750411009666,0.6685,2553.2,2553.1,0.78321]
[1750411009869,9.4278,2553.3,2553.2,0.78318]
[1750411011677,10.21094,2553.3,2553.2,0.78318]
[1750411013269,7.00314,2553.3,2553.2,0.78318]
[1750411013470,0.78314,2553.4,2553.3,0.78312]
[1750411013873,0.78314,2553.4,2553.3,0.78315]
[1750411014578,7.67161,2553.5,2553.4,0.78311]
[1750411014873,6.8885,2553.5,2553.4,0.78311]
[1750411015071,3.2078,2553.6,2553.5,0.78308]
[1750411015270,6.22,2553.9,2553.6,0.78303]
[1750411015271,0.78305,2553.7,2553.6,0.78303]
[1750411016870,0.78306,2553.7,2553.6,0.78303]
[1750411019287,0.7831,2553.6,2553.5,0.78306]
[1750411020182,0.78313,2553.5,2553.4,0.78309]
[1750411020374,0.78308,2553.6,2553.5,0.78305]
[1750411021679,0.78315,2553.4,2553.3,0.78312]
[1750411023676,0.78315,2553.4,2553.3,0.78315]
[1750411024581,0.78315,2553.3,2553.2,3.2078]
[1750411024780,0.78324,2553.0,2552.9,3.12867984]
[1750411025283,0.78339,2552.6,2552.5,0.78337]
[1750411025475,0.78339,2552.5,2552.4,3.99119]
[1750411025870,0.78339,2552.5,2552.4,3.2078]
[1750411026482,0.78339,2552.5,2552.4,3.99122]
[1750411026886,0.78339,2552.5,2552.4,3.2078]
[1750411028278,2.10819,2552.5,2552.4,3.2078]
[1750411028678,2.10819,2552.5,2552.4,3.99122]
[1750411028881,0.78349,2552.2,2552.1,0.78348]
[1750411029080,0.78351,2552.1,2552.0,3.99134]
[1750411029281,2.10241,2552.1,2552.0,3.99134]
[1750411030287,2.74661,2552.1,2552.0,3.99134]
[1750411030689,1.9631,2552.1,2552.0,3.99134]
[1750411031187,7.00334,2552.7,2552.6,0.78336]
[1750411031390,0.78341,2552.5,2552.4,0.7834]
[1750411031680,6.22,2552.7,2552.1,2.59186]
[1750411031681,2.10228,2552.6,2552.5,0.78339]
[1750411031876,0.7834,2552.5,2552.4,0.78339]
[1750411032079,2.0486,2552.5,2552.4,0.78339]
[1750411032287,2.6712,2552.5,2552.4,0.78339]
[1750411032680,1.8878,2552.5,2552.4,0.78339]
[1750411033686,2.67119,2552.5,2552.4,0.78339]
[1750411033887,1.8878,2552.5,2552.4,0.78339]
[1750411034182,2.67119,2552.5,2552.4,0.78339]
[1750411036381,1.8878,2552.5,2552.0,3.2078]
[1750411036575,0.78349,2552.3,2552.2,0.78343]
[1750411036781,2.67121,2552.5,2552.4,0.78342]
[1750411040187,0.78346,2552.4,2552.3,0.78343]
[1750411040391,2.08336,2552.4,2552.3,0.78343]
[1750411040691,0.78348,2552.3,2552.2,0.78345]
[1750411040892,1.2999,2552.3,2552.2,0.78345]
[1750411041193,6.99645,2552.4,2552.3,0.78345]
[1750411041698,8.34955,2552.4,2552.3,0.78345]
[1750411041879,7.5661,2552.4,2552.3,0.78345]
[1750411042085,25.37601,2552.5,2552.1,1.95879]
[1750411042086,1.40601,2552.5,2552.4,0.78342]
[1750411042395,7.61901,2552.5,2552.4,0.78342]
[1750411042586,8.97211,2552.5,2552.4,0.78342]
[1750411042989,0.78345,2552.4,2552.3,0.78342]
[1750411043195,0.78348,2552.3,2552.2,0.78345]
[1750411044492,8.97213,2552.5,2552.4,0.78342]
[1750411044892,0.78347,2552.4,2552.3,0.78344]
[1750411045090,2.03647,2552.4,2552.3,0.78344]
[1750411045486,0.78351,2552.2,2552.1,0.78349]
[1750411045886,1.253,2552.3,2552.2,0.78348]
[1750411046396,0.78344,2552.4,2552.3,0.78345]
[1750411046991,30.96544,2552.4,2552.3,0.78345]
[1750411047494,30.96444,2552.4,2552.3,0.78345]
[1750411047995,0.78349,2552.3,2552.2,0.78346]
[1750411048398,2.03649,2552.3,2552.2,0.78346]
[1750411049193,1.253,2552.3,2552.2,0.78346]
[1750411049997,2.03645,2552.3,2552.2,0.78346]
[1750411050392,1.253,2552.3,2552.2,0.78346]
[1750411050695,30.96444,2552.4,2552.3,0.78345]
[1750411051097,32.24424,2552.4,2552.3,0.78345]
[1750411051995,0.78345,2552.3,2552.2,0.78345]
[1750411052190,0.78349,2552.3,2552.2,0.78346]
[1750411052385,2.06329,2552.3,2552.2,0.78346]
[1750411052596,30.96445,2552.4,2552.3,0.78345]
[1750411052794,30.96445,2552.4,2552.0,5.16667]
[1750411052795,0.78349,2552.3,2552.2,0.78346]
[1750411053196,0.78351,2552.2,2552.1,0.78348]
[1750411053897,0.78351,2552.2,2552.1,0.78349]
[1750411054696,2.03975,2552.3,2552.2,0.78348]
[1750411055802,0.78351,2552.2,2552.1,0.78349]
[1750411056198,0.78351,2552.1,2552.0,3.2078]
[1750411056398,25.41081,2552.1,2552.0,3.2078]
[1750411056901,25.41081,2552.1,2552.0,3.99134]
[1750411057704,25.41081,2552.1,2552.0,3.2078]
[1750411058202,0.78363,2551.8,2551.7,0.78361]
[1750411058404,30.96163,2551.8,2551.7,0.78361]
[1750411059304,30.178,2551.8,2551.7,0.78361]
[1750411059902,30.96161,2551.8,2551.7,0.78361]
[1750411060099,30.178,2551.8,2551.7,0.78361]
[1750411061000,0.78356,2552.0,2551.6,5.16697]
[1750411061199,23.966,2551.9,2551.7,0.78364]
[1750411061505,0.78357,2552.0,2551.9,0.78356]
[1750411061706,30.96357,2552.0,2551.9,0.78356]
[1750411062007,0.7836,2551.9,2551.8,0.78358]
[1750411062505,2.1078,2551.9,2551.8,0.78358]
[1750411063209,1.3242,2551.9,2551.8,0.78358]
[1750411063609,2.10778,2551.9,2551.8,0.78361]
[1750411064104,0.78363,2551.8,2551.7,0.78361]
[1750411064316,2.10783,2551.8,2551.7,0.78361]
[1750411067214,0.78364,2551.7,2551.6,3.99145]
[1750411067414,25.37654,2551.7,2551.6,3.99145]
[1750411068719,25.37654,2551.7,2551.6,3.2078]
[1750411069316,25.37654,2551.7,2551.6,3.99147]
[1750411069909,24.74864,2551.7,2551.6,3.99147]
[1750411074822,0.78367,2551.6,2551.5,0.78367]
[1750411075016,0.78367,2551.6,2551.5,3.99147]
[1750411075619,0.78367,2551.6,2551.5,3.9915]
[1750411076224,0.78367,2551.6,2551.5,3.2078]
[1750411076422,6.99167,2551.6,2551.5,3.2078]
[1750411076729,6.99167,2551.6,2551.1,1.2767]
[1750411076730,0.78376,2551.3,2551.2,3.2078]
[1750411077223,0.78376,2551.3,2551.2,3.99157]
[1750411077616,0.78376,2551.3,2551.2,3.2078]
[1750411079220,2.13846,2551.3,2551.2,3.2078]
[1750411080114,0.78385,2551.0,2550.9,3.8393]
[1750411080312,0.78385,2551.0,2550.9,3.2078]
[1750411080515,6.99185,2551.0,2550.9,3.2078]
[1750411080718,8.23855,2551.0,2550.9,3.2078]
[1750411081121,0.78394,2550.7,2550.6,0.78397]
[1750411081313,0.78398,2550.6,2550.5,3.2078]
[1750411082717,6.99198,2550.6,2550.5,3.2078]
[1750411083223,8.23868,2550.6,2550.5,3.2078]
[1750411084217,1.43646,2550.7,2550.6,0.78398]
[1750411084526,6.209,2550.6,2550.5,3.99179]
[1750411085126,6.99298,2550.6,2550.5,3.2078]
[1750411085923,8.27358,2550.6,2550.5,3.2078]
[1750411087227,8.27358,2550.6,2549.9,3.2078]
[1750411087228,0.78416,2550.0,2549.9,3.2078]
[1750411091927,0.78428,2549.6,2549.5,4.64599]
[1750411092227,0.78428,2549.6,2549.5,3.99209]
[1750411092431,0.78428,2549.6,2549.5,3.2078]
[1750411092628,0.78438,2549.3,2549.2,0.6735]
[1750411092936,1.96082,2549.5,2549.1,3.2078]
[1750411092937,0.78441,2549.2,2549.1,3.2078]
[1750411093230,0.7845,2548.9,2548.8,1.458]
[1750411093729,0.7845,2548.9,2548.8,1.45803]
[1750411093934,1.96112,2549.1,2548.7,3.99234]
[1750411093935,0.78453,2548.8,2548.7,3.99234]
[1750411094331,0.78453,2548.8,2548.7,3.2078]
[1750411094524,4.23199295,2550.2,2548.7,8.2078]
[1750411094821,3.2078,2550.0,2549.9,0.78416]
[1750411095218,3.2078,2550.0,2549.7,2.0526]
[1750411095429,3.99198,2550.0,2549.7,0.6735]
[1750411095626,0.78422,2549.8,2549.7,0.6735]
[1750411095932,0.78421,2549.9,2549.7,1.45774]
[1750411096132,0.78422,2549.8,2549.7,1.45774]
[1750411096430,3.2078,2550.0,2549.4,0.78433]
[1750411096431,0.78428,2549.6,2549.4,0.78433]
[1750411096628,0.78434,2549.4,2549.3,3.8635]
[1750411097023,0.78434,2549.4,2549.3,3.2078]
[1750411098133,0.78434,2549.4,2549.3,3.99218]
[1750411098324,0.6551,2549.5,2549.3,3.99218]
[1750411098637,0.78434,2549.4,2549.3,3.2078]
[1750411098932,6.212,2549.5,2549.3,3.2078]
[1750411099127,0.7843,2549.6,2549.5,0.78431]
[1750411099325,6.9963,2549.6,2549.5,0.78431]
[1750411099626,6.9963,2549.6,2549.4,0.78433]
[1750411099926,3.99207,2549.7,2549.6,0.78428]
[1750411100230,0.78428,2549.6,2549.5,0.7843]
[1750411100431,0.78428,2549.6,2549.4,0.78432]
[1750411100632,10.19807,2549.7,2549.3,4.4824]
[1750411100832,0.78429,2549.6,2549.4,0.78432]
[1750411101034,0.78431,2549.5,2549.4,0.78433]
[1750411101338,0.7843,2549.6,2549.5,0.78431]
[1750411101528,0.7843,2549.6,2549.3,4.4824]
[1750411101529,0.78433,2549.5,2549.4,0.78434]
[1750411101725,3.2078,2549.7,2549.3,4.4824]
[1750411101934,9.4148,2549.7,2549.6,0.78428]
[1750411102132,6.207,2549.7,2549.6,0.78428]
[1750411103432,6.207,2549.7,2549.5,0.78431]
[1750411103635,6.207,2549.7,2549.1,0.6557]
[1750411103636,1.96072,2549.6,2549.1,0.6557]
[1750411103937,0.7844,2549.3,2549.2,0.7844]
[1750411104341,0.78441,2549.2,2549.1,1.44011]
[1750411104637,0.78438,2549.3,2549.2,0.78438]
[1750411104833,0.78441,2549.2,2549.1,1.44012]
[1750411105535,6.207,2549.2,2548.7,3.27608095]
[1750411105736,0.78449,2549.0,2548.9,0.78449]
[1750411107429,0.78445,2549.1,2549.0,0.78445]
[1750411108335,1.341,2549.3,2548.8,3.27651]
[1750411108533,1.341,2549.3,2548.8,1.96131]
[1750411108534,6.207,2549.2,2548.8,1.96131]
[1750411108731,0.78449,2549.0,2548.9,0.78449]
[1750411109333,1.42029,2549.0,2548.9,0.78449]
[1750411109734,0.78451,2548.9,2548.8,0.78451]
[1750411110041,0.78452,2548.9,2548.8,0.78452]
[1750411110340,0.6358,2549.0,2548.9,0.7845]
[1750411111340,1.42027,2549.0,2548.7,3.27608095]
[1750411111544,0.78452,2548.9,2548.8,0.78452]
[1750411112049,0.78453,2548.8,2548.7,3.99234]
[1750411112535,0.78457,2548.7,2548.6,0.78457]
[1750411113144,1.96134,2548.8,2548.4,0.684]
[1750411113347,1.96134,2548.8,2548.3,3.2078]
[1750411113348,25.93741,2548.7,2548.3,3.99246]
[1750411113646,0.78465,2548.4,2548.3,3.99248]
[1750411114538,6.208,2548.7,2548.3,3.2078]
[1750411114743,6.99258,2548.7,2548.5,0.78459]
[1750411114942,0.7846,2548.6,2548.4,0.6576]
[1750411115146,0.7846,2548.6,2548.5,0.78461]
[1750411115641,0.7846,2548.6,2548.4,0.6576]
[1750411115642,6.208,2548.7,2548.6,0.78459]
[1750411115834,6.99257,2548.7,2548.6,0.78457]
[1750411116152,0.7846,2548.6,2548.5,0.7846]
[1750411116643,6.99258,2548.7,2548.6,0.78458]
[1750411117048,6.208,2548.7,2548.6,0.78458]
[1750411117344,6.99256,2548.7,2548.6,0.78458]
[1750411117738,6.208,2548.7,2548.6,0.78458]
[1750411118245,10.20034,2548.8,2548.7,0.78456]
[1750411118447,10.20035,2548.8,2548.7,0.78456]
[1750411118646,0.78457,2548.7,2548.6,0.78457]
[1750411118940,3.2078,2548.8,2548.7,0.78456]
[1750411119149,6.8859,2549.0,2548.9,0.7845]
[1750411119341,0.6779,2549.0,2548.9,0.7845]
[1750411119954,48.3948,2549.1,2549.0,0.78447]
[1750411120245,3.2078,2549.1,2549.0,0.78447]
[1750411122543,0.6492,2549.2,2549.1,0.78444]
[1750411122841,3.2078,2549.4,2549.3,0.78437]
[1750411123035,0.78443,2549.2,2549.1,0.78441]
[1750411123244,0.7844,2549.3,2549.2,0.78438]
[1750411123445,2.0646,2549.3,2549.2,0.78438]
[1750411124848,3.99217,2549.4,2549.3,0.78438]
[1750411125442,0.7844,2549.3,2549.2,0.78439]
[1750411126043,5.27237,2549.4,2549.3,0.78438]
[1750411126846,10.20017,2549.4,2549.3,0.78438]
[1750411127046,9.4158,2549.4,2549.3,0.78438]
[1750411129350,6.208,2549.4,2549.3,0.78438]
[1750411130242,0.673,2549.5,2549.4,0.78434]
[1750411132251,9.4148,2549.7,2549.6,0.78428]
[1750411132453,3.2078,2549.7,2549.6,0.78428]
[1750411135558,3.2078,2549.7,2549.4,0.78434]
[1750411135559,0.6868,2549.8,2549.7,0.78425]
[1750411136658,6.207,2549.9,2549.8,0.78422]
[1750411136958,6.8621,2549.9,2549.8,0.78422]
[1750411138557,3.2078,2550.1,2550.0,0.78416]
[1750411138853,9.4138,2550.1,2550.0,0.78416]
[1750411139452,3.2078,2550.1,2550.0,0.78416]
[1750411139853,8.1546,2550.3,2549.8,0.78422]
[1750411140053,1.3533,2550.2,2550.1,0.78413]
[1750411140458,0.6257,2550.3,2550.2,0.7841]
[1750411140656,6.8317,2550.3,2550.2,0.7841]
[1750411140963,0.6257,2550.3,2550.2,0.7841]
[1750411141760,3.2078,2550.5,2550.4,0.78404]
[1750411143053,3.2078,2550.8,2550.7,0.78394]
[1750411145757,3.99174,2550.8,2550.7,0.78394]
[1750411146163,3.2078,2550.8,2550.7,0.78394]
[1750411146562,5.24281,2550.8,2550.7,0.78394]
[1750411146760,4.4589,2550.8,2550.7,0.78394]
[1750411150961,3.2078,2550.8,2550.7,0.78394]
[1750411152869,0.6757,2551.0,2550.7,0.78394]
[1750411152870,0.6757,2551.0,2550.9,0.78388]
[1750411153571,9.4128,2551.2,2551.1,0.78382]
[1750411153875,10.0856,2551.2,2551.1,0.78382]
[1750411154168,3.8806,2551.2,2551.1,0.78382]
[1750411154383,7.5602,2551.4,2551.3,0.78376]
[1750411155165,6.204,2551.4,2551.3,0.78376]
[1750411155973,7.5602,2551.4,2551.3,0.78376]
[1750411156569,0.6728,2551.5,2551.4,0.78373]
[1750411156968,1.9438,2551.5,2551.4,0.78373]
[1750411157174,3.2078,2551.6,2551.5,0.7837]
[1750411157368,3.2078,2552.0,2551.9,0.78358]
[1750411157767,4.4788,2552.0,2551.9,0.78358]
[1750411158373,5.26235,2552.0,2551.9,0.78358]
[1750411158966,4.4788,2552.0,2551.9,0.78358]
[1750411159778,5.26235,2552.0,2551.9,0.78358]
[1750411160578,4.4788,2552.0,2551.9,0.78358]
[1750411161880,0.78359,2551.9,2551.4,2.60289]
[1750411162077,1.943,2551.8,2551.7,0.78364]
[1750411162871,1.943,2551.8,2550.4,0.39386098]
[1750411163073,3.99146,2551.7,2551.6,0.78364]
[1750411163278,5.25006,2551.7,2551.6,0.78364]
[1750411163478,11.46206,2551.7,2551.6,0.78364]
[1750411164078,0.78371,2551.6,2551.5,0.78368]
[1750411164282,2.04231,2551.6,2551.5,0.78368]
[1750411164473,2.04231,2551.6,2551.2,1.95945]
[1750411164474,1.2586,2551.6,2551.1,1.95955]
[1750411164779,5.16716,2551.4,2550.8,3.2078]
[1750411164978,3.99165,2551.1,2550.7,1.95982]
[1750411165180,3.99165,2551.1,2550.8,0.78389]
[1750411165181,0.7839,2550.9,2550.8,0.78389]
[1750411165381,0.7839,2550.9,2550.5,5.16781]
[1750411165382,0.78394,2550.8,2550.7,0.78393]
[1750411165681,2.04254,2550.8,2550.7,0.78393]
[1750411165973,1.2586,2550.8,2550.7,0.78393]
[1750411166774,2.04252,2550.8,2550.7,0.78393]
[1750411167674,1.2586,2550.8,2550.7,0.78393]
[1750411168181,2.04252,2550.8,2550.7,0.78393]
[1750411169580,1.2586,2550.8,2550.7,0.78393]
[1750411169782,2.04252,2550.8,2550.7,0.78393]
[1750411170679,0.78396,2550.7,2550.6,0.78396]
[1750411170875,1.3496,2550.7,2550.6,0.78396]
[1750411171081,2.13355,2550.7,2550.6,0.78396]
[1750411172476,1.3496,2550.7,2550.6,0.78396]
[1750411172781,2.13355,2550.7,2550.6,0.78396]
[1750411173284,1.3496,2550.7,2550.6,0.78396]
[1750411173585,2.13355,2550.7,2550.6,0.78396]
[1750411174582,2.13355,2550.7,2550.1,3.23969]
[1750411174583,1.3496,2550.7,2550.1,3.23969]
[1750411174785,1.3496,2550.7,2550.1,1.96029]
[1750411174977,0.78402,2550.5,2550.4,0.78402]
[1750411176784,0.78399,2550.6,2550.5,0.78399]
[1750411177480,1.44869,2550.6,2550.5,0.78399]
[1750411177889,1.44868,2550.6,2550.5,0.78399]
[1750411178387,6.8777,2550.6,2550.5,0.78399]
[1750411178889,7.66168,2550.6,2550.5,0.78399]